bitfinex/quotes_BTCUSD_20241020
["timestamp","ask_amount","ask_price","bid_price","bid_amount"]
[1729433761974,0.26858598,68623.0,68622.0,0.0937]
[1729433762809,0.09662683,68623.0,68622.0,0.244425]
[1729433763065,0.000828,68634.0,68633.0,0.1786]
[1729433763290,0.10017681,68634.0,68633.0,0.324302]
[1729433766040,0.10017681,68634.0,68633.0,0.329302]
[1729433767978,0.10017681,68634.0,68633.0,0.1836]
[1729433768237,0.10017681,68634.0,68633.0,0.329302]
[1729433769759,0.10017681,68634.0,68633.0,0.1045]
[1729433769978,0.24913596,68634.0,68633.0,0.0975]
[1729433770401,0.39483596,68634.0,68630.0,0.002]
[1729433770633,0.168704,68632.0,68628.0,0.1766]
[1729433770905,0.14895915,68631.0,68628.0,0.0975]
[1729433775476,0.023,68630.0,68628.0,0.0975]
[1729433775747,0.17195915,68629.0,68628.0,0.0975]
[1729433775991,0.26569318,68629.0,68628.0,0.0975]
[1729433776683,0.26569318,68629.0,68628.0,0.0995]
[1729433777122,0.26569318,68629.0,68628.0,0.245213]
[1729433778220,0.24269318,68629.0,68628.0,0.245213]
[1729433778451,0.000828,68634.0,68629.0,0.0919]
[1729433778717,0.000828,68634.0,68633.0,0.147702]
[1729433778923,0.09888093,68634.0,68633.0,0.147702]
[1729433779380,0.09888093,68634.0,68633.0,0.002]
[1729433779596,0.24784008,68634.0,68633.0,0.147702]
[1729433779812,0.24784008,68634.0,68633.0,0.002]
[1729433780038,0.24784008,68634.0,68633.0,0.147702]
[1729433780249,0.24784008,68634.0,68633.0,0.002]
[1729433781386,0.00218572,68636.0,68633.0,0.002]
[1729433781387,0.000828,68651.0,68649.0,0.1773]
[1729433781619,0.000828,68651.0,68650.0,0.449966]
[1729433781849,0.000828,68651.0,68650.0,0.55365369]
[1729433782063,0.000828,68651.0,68650.0,0.4672684]
[1729433782282,0.000828,68651.0,68650.0,0.53197058]
[1729433782497,0.87420866,68663.0,68656.0,0.347453]
[1729433782924,0.87420866,68663.0,68656.0,0.49641215]
[1729433783375,0.0009892,68664.0,68660.0,0.015]
[1729433783592,0.0009892,68664.0,68660.0,0.40650415]
[1729433783810,0.87420866,68670.0,68660.0,0.40650415]
[1729433786495,0.0009922,68674.0,68660.0,0.40650415]
[1729433795057,0.0009922,68674.0,68660.0,0.41650415]
[1729433801496,0.21846622,68671.0,68660.0,0.41650415]
[1729433801711,0.0009922,68674.0,68660.0,0.41650415]
[1729433804418,0.0009922,68674.0,68660.0,0.59530415]
[1729433805171,0.21846622,68671.0,68660.0,0.59330415]
[1729433805399,0.0009922,68674.0,68660.0,0.59330415]
[1729433806656,0.0009922,68674.0,68660.0,0.61048708]
[1729433807143,0.0009922,68674.0,68660.0,0.59330415]
[1729433807610,0.0009922,68674.0,68660.0,0.61050813]
[1729433808627,0.00317661,68674.0,68660.0,0.61050813]
[1729433808876,0.00317661,68674.0,68660.0,0.61250813]
[1729433809165,0.0009922,68674.0,68660.0,0.61050813]
[1729433810302,0.0009922,68674.0,68660.0,0.61250813]
[1729433810541,0.0009922,68674.0,68660.0,0.61050813]
[1729433810778,0.0009922,68674.0,68660.0,0.59330415]
[1729433811014,0.0009922,68674.0,68660.0,0.59530415]
[1729433811752,0.0009922,68674.0,68660.0,0.61257926]
[1729433812723,0.0009922,68674.0,68660.0,0.63367986]
[1729433812955,0.0009922,68674.0,68660.0,0.63167986]
[1729433813949,0.0009922,68674.0,68660.0,0.61057926]
[1729433814428,0.0009922,68674.0,68660.0,0.59330415]
[1729433814673,0.0009922,68674.0,68660.0,0.61258431]
[1729433815137,0.0009922,68674.0,68660.0,0.61058431]
[1729433817838,0.0009922,68674.0,68660.0,0.59330415]
[1729433818548,0.0009922,68674.0,68660.0,0.61058109]
[1729433821003,0.0009922,68674.0,68660.0,0.59330415]
[1729433821240,0.0009922,68674.0,68660.0,0.61058188]
[1729433822175,0.0009922,68674.0,68660.0,0.65343516]
[1729433822409,0.0009922,68674.0,68660.0,0.61058188]
[1729433822639,0.0009922,68674.0,68660.0,0.67486181]
[1729433822875,0.000328,68661.0,68660.0,0.67486181]
[1729433823148,0.000328,68661.0,68660.0,0.61058188]
[1729433823609,0.000328,68661.0,68660.0,0.69628845]
[1729433824334,0.000328,68661.0,68660.0,0.61058188]
[1729433824560,0.000328,68661.0,68660.0,0.61058668]
[1729433827707,0.000328,68661.0,68660.0,0.61058951]
[1729433830914,0.000328,68661.0,68660.0,0.61059485]
[1729433831342,0.000328,68661.0,68660.0,0.59330415]
[1729433831541,0.000328,68661.0,68660.0,0.61059619]
[1729433831743,0.000328,68661.0,68660.0,0.61059666]
[1729433834593,0.000328,68661.0,68660.0,0.74018266]
[1729433834805,0.000328,68661.0,68660.0,0.61259666]
[1729433835017,0.000328,68661.0,68660.0,0.74218324]
[1729433835223,0.000328,68661.0,68660.0,0.59330415]
[1729433835429,0.000328,68661.0,68660.0,0.61060195]
[1729433836269,0.000328,68661.0,68660.0,0.61225595]
[1729433836475,0.000328,68661.0,68660.0,0.61425595]
[1729433837337,0.000328,68661.0,68660.0,0.74384253]
[1729433838670,0.000328,68661.0,68660.0,0.61425595]
[1729433842547,0.000328,68661.0,68660.0,0.61425477]
[1729433842968,0.000328,68661.0,68660.0,0.61225477]
[1729433843397,0.000328,68661.0,68660.0,0.53545477]
[1729433843662,0.000328,68661.0,68660.0,0.64781396]
[1729433843870,0.000328,68661.0,68660.0,0.66511852]
[1729433844541,0.000328,68661.0,68660.0,0.53545577]
[1729433844983,0.000328,68661.0,68660.0,0.53545778]
[1729433846406,0.000328,68661.0,68660.0,0.51815815]
[1729433846636,0.000328,68661.0,68660.0,0.53545665]
[1729433847066,0.000328,68661.0,68660.0,0.53545707]
[1729433849039,0.000328,68661.0,68660.0,0.53745707]
[1729433849473,0.000328,68661.0,68660.0,0.53545707]
[1729433852805,0.000328,68661.0,68660.0,0.53745707]
[1729433854166,0.000328,68661.0,68660.0,0.52015815]
[1729433854378,0.000328,68661.0,68660.0,0.53745578]
[1729433855324,0.000328,68661.0,68660.0,0.53545578]
[1729433857231,0.000328,68661.0,68660.0,0.53745578]
[1729433857725,0.000328,68661.0,68660.0,0.62025578]
[1729433857980,0.000328,68661.0,68660.0,0.60295815]
[1729433858461,0.000328,68661.0,68660.0,0.62025496]
[1729433858693,0.000328,68661.0,68660.0,0.63755188]
[1729433859432,0.000328,68661.0,68660.0,0.82900704]
[1729433860427,0.000328,68661.0,68660.0,0.68258621]
[1729433861669,0.000328,68661.0,68660.0,0.63755188]
[1729433861916,0.000328,68661.0,68660.0,0.69337331]
[1729433862166,0.000328,68661.0,68660.0,0.63105462]
[1729433862401,0.000328,68661.0,68660.0,0.65266555]
[1729433863151,0.000328,68661.0,68660.0,0.69768195]
[1729433863879,0.0009922,68674.0,68672.0,0.440819]
[1729433864109,0.21846622,68675.0,68672.0,0.63948555]
[1729433864378,0.000826,68679.0,68672.0,0.62948555]
[1729433864631,0.000826,68679.0,68672.0,0.56218555]
[1729433865402,0.000826,68679.0,68672.0,0.53408908]
[1729433865683,0.000826,68679.0,68672.0,0.564106]
[1729433865913,0.000826,68679.0,68672.0,0.562106]
[1729433866623,0.000826,68679.0,68672.0,0.78257222]
[1729433866855,0.000826,68679.0,68672.0,0.564106]
[1729433867836,0.000826,68679.0,68672.0,0.574106]
[1729433868578,0.000826,68679.0,68672.0,0.651406]
[1729433869043,0.000826,68679.0,68672.0,0.60177815]
[1729433869261,0.000826,68679.0,68672.0,0.65135278]
[1729433869743,0.000826,68679.0,68672.0,0.65134089]
[1729433870631,0.000826,68679.0,68672.0,0.67434089]
[1729433871067,0.06,68690.0,68689.0,0.025]
[1729433871068,0.02626016,68690.0,68689.0,0.025]
[1729433871290,0.079199,68700.0,68689.0,0.025]
[1729433871291,0.079199,68700.0,68697.0,0.174566]
[1729433871512,0.079199,68700.0,68697.0,0.475766]
[1729433871727,0.000825,68709.0,68708.0,0.272543]
[1729433871942,0.000825,68709.0,68708.0,0.57320786]
[1729433872161,0.000825,68709.0,68708.0,0.75013433]
[1729433872395,0.000825,68709.0,68708.0,0.61766947]
[1729433872634,0.000825,68709.0,68708.0,0.68407292]
[1729433873120,0.000825,68709.0,68708.0,0.60477292]
[1729433873401,5.223e-05,68719.0,68714.0,0.025]
[1729433873402,0.04615258,68715.0,68714.0,0.025]
[1729433873662,0.04615258,68715.0,68714.0,0.42148915]
[1729433873898,0.04615258,68715.0,68714.0,0.42224581]
[1729433874129,0.04615258,68715.0,68714.0,0.43224581]
[1729433874357,0.04615258,68715.0,68714.0,0.42148915]
[1729433874613,0.04615258,68715.0,68714.0,0.42220569]
[1729433875111,0.04615258,68715.0,68714.0,0.41148915]
[1729433876099,0.04615258,68715.0,68714.0,0.30648915]
[1729433877350,0.04615258,68715.0,68714.0,0.15753]
[1729433880071,0.1384679,68715.0,68714.0,0.15753]
[1729433881806,0.1384679,68715.0,68714.0,0.005]
[1729433882065,0.1384679,68715.0,68714.0,0.01]
[1729433882314,0.21846622,68734.0,68729.0,0.150498]
[1729433882594,0.00040886,68743.0,68729.0,0.371698]
[1729433882816,0.00040886,68743.0,68729.0,0.37240189]
[1729433883038,0.00040886,68743.0,68729.0,0.38240189]
[1729433883274,0.001,68750.0,68729.0,0.38240189]
[1729433883275,0.00315786,68749.0,68748.0,0.150458]
[1729433883540,0.22162408,68749.0,68748.0,0.40361715]
[1729433883755,0.00315786,68749.0,68748.0,0.40861715]
[1729433884201,0.00315786,68749.0,68748.0,0.41061715]
[1729433884653,0.00315786,68749.0,68748.0,0.52061715]
[1729433884886,0.00315786,68749.0,68748.0,0.53128257]
[1729433885120,0.00315786,68749.0,68748.0,0.52128232]
[1729433885338,0.07647996,68749.0,68748.0,0.155458]
[1729433887411,0.00315786,68749.0,68748.0,0.155458]
[1729433887843,0.00315786,68749.0,68748.0,0.157458]
[1729433888846,0.00315786,68749.0,68748.0,0.30641715]
[1729433889082,0.00315786,68749.0,68748.0,0.31141715]
[1729433892407,0.00315786,68749.0,68748.0,0.30641715]
[1729433892620,0.08030256,68749.0,68748.0,0.157458]
[1729433892857,0.08030256,68749.0,68748.0,0.155458]
[1729433893027,0.07812051,68749.0,68748.0,0.157458]
[1729433893403,0.00265786,68749.0,68748.0,0.157458]
[1729433895030,0.00265786,68749.0,68748.0,0.155458]
[1729433895240,0.07596948,68749.0,68748.0,0.155458]
[1729433895450,0.07596948,68749.0,68748.0,0.157458]
[1729433895869,0.06765148,68749.0,68748.0,0.157458]
[1729433896761,0.06847948,68749.0,68748.0,0.157458]
[1729433897192,0.000828,68749.0,68748.0,0.16814334]
[1729433899209,0.000828,68749.0,68748.0,0.1852632]
[1729433900623,0.07524425,68749.0,68748.0,0.1852632]
[1729433901040,0.000828,68749.0,68748.0,0.1852632]
[1729433902145,0.000828,68749.0,68748.0,0.18606188]
[1729433902357,0.000828,68749.0,68748.0,0.1852632]
[1729433908744,0.000828,68749.0,68748.0,0.18535933]
[1729433908994,0.000828,68749.0,68748.0,0.17835933]
[1729433909251,0.07672382,68749.0,68748.0,0.18501333]
[1729433909729,0.15482382,68749.0,68748.0,0.02955533]
[1729433909987,0.32327982,68749.0,68748.0,0.01238528]
[1729433910244,0.15482382,68749.0,68748.0,0.01238528]
[1729433910974,0.15482382,68749.0,68748.0,0.001654]
[1729433911193,0.15482382,68749.0,68748.0,0.01240047]
[1729433911464,0.15482382,68749.0,68748.0,0.001654]
[1729433911680,0.15482382,68749.0,68748.0,0.01240015]
[1729433912577,0.15482382,68749.0,68748.0,0.001654]
[1729433912790,0.15482382,68749.0,68748.0,0.02964016]
[1729433913199,0.15482382,68749.0,68748.0,0.01241184]
[1729433913852,0.07672382,68749.0,68748.0,0.01241184]
[1729433914097,0.07672382,68749.0,68748.0,0.18009005]
[1729433914336,0.07652541,68749.0,68748.0,0.03463205]
[1729433914995,0.07652541,68749.0,68748.0,0.18009005]
[1729433915250,0.00062959,68749.0,68748.0,0.18209005]
[1729433918676,0.00062959,68749.0,68748.0,0.18709005]
[1729433919335,0.00062959,68749.0,68748.0,0.12709005]
[1729433920296,0.00062959,68749.0,68748.0,0.005]
[1729433920481,0.00062959,68749.0,68748.0,0.150458]
[1729433920703,0.00062959,68749.0,68748.0,0.152112]
[1729433922575,0.00012959,68749.0,68748.0,0.152112]
[1729433927208,0.00012959,68749.0,68748.0,0.006654]
[1729433927371,0.15535558,68749.0,68748.0,0.001654]
[1729433928275,0.15535558,68749.0,68748.0,0.147112]
[1729433928520,0.15535558,68749.0,68748.0,0.001654]
[1729433930324,0.15535558,68749.0,68748.0,0.147112]
[1729433930543,0.07345558,68749.0,68748.0,0.147112]
[1729433934422,0.07345558,68749.0,68748.0,0.14603159]
[1729433935788,0.07345558,68749.0,68748.0,0.29999074]
[1729433935789,0.00012959,68749.0,68748.0,0.29999074]
[1729433936014,0.00012959,68749.0,68748.0,0.32221321]
[1729433936247,0.00012959,68749.0,68748.0,0.36524013]
[1729433936465,0.00012959,68749.0,68748.0,0.48677801]
[1729433936685,0.00012959,68749.0,68748.0,0.42221321]
[1729433937167,0.00012959,68749.0,68748.0,0.50829961]
[1729433937406,0.00012959,68749.0,68748.0,0.49107714]
[1729433937624,0.00012959,68749.0,68748.0,0.50828634]
[1729433937847,0.00012959,68749.0,68748.0,0.48672716]
[1729433939690,0.00012959,68749.0,68748.0,0.42219994]
[1729433939944,0.00012959,68749.0,68748.0,0.48672716]
[1729433940187,0.00012959,68749.0,68748.0,0.42219994]
[1729433940413,0.00012959,68749.0,68748.0,0.46521145]
[1729433940880,0.00012959,68749.0,68748.0,0.42219061]
[1729433943201,0.00012959,68749.0,68748.0,0.44800225]
[1729433943421,0.00012959,68749.0,68748.0,0.40499074]
[1729433943683,0.00012959,68749.0,68748.0,0.51969308]
[1729433943897,0.00012959,68749.0,68748.0,0.50249074]
[1729433944137,0.00012959,68749.0,68748.0,0.51969253]
[1729433944661,0.00012959,68749.0,68748.0,0.58419952]
[1729433945386,0.00012959,68749.0,68748.0,0.51969253]
[1729433945982,0.00012959,68749.0,68748.0,0.56268336]
[1729433946136,0.00012959,68749.0,68748.0,0.51969253]
[1729433946599,0.00012959,68749.0,68748.0,0.51469253]
[1729433946830,0.00012959,68749.0,68748.0,0.49749074]
[1729433950017,0.00012959,68749.0,68748.0,0.15103159]
[1729433950240,0.00012959,68749.0,68748.0,0.00557359]
[1729433950473,0.07587039,68749.0,68748.0,0.00557359]
[1729433950911,0.07907425,68749.0,68748.0,0.00557359]
[1729433951595,0.07907425,68749.0,68748.0,0.00057359]
[1729433951596,0.37704047,68749.0,68748.0,0.00057359]
[1729433951808,0.37704047,68749.0,68748.0,0.00557359]
[1729433951809,0.15857425,68749.0,68748.0,0.00557359]
[1729433952032,0.07907425,68749.0,68748.0,0.00557359]
[1729433952330,0.07907425,68749.0,68748.0,0.15103159]
[1729433953370,0.07907425,68749.0,68748.0,0.00557359]
[1729433956158,0.07907425,68749.0,68748.0,0.00057359]
[1729433958385,0.00333345,68749.0,68748.0,0.24623159]
[1729433958846,0.00012959,68749.0,68748.0,0.24623159]
[1729433959735,0.00012959,68749.0,68748.0,0.39519074]
[1729433960003,0.00012959,68749.0,68748.0,0.51019074]
[1729433960281,0.00012959,68749.0,68748.0,0.57469773]
[1729433960723,0.00012959,68749.0,68748.0,0.51019074]
[1729433960959,0.00012959,68749.0,68748.0,0.57468439]
[1729433961234,0.00012959,68749.0,68748.0,0.51019074]
[1729433961878,0.00012959,68749.0,68748.0,0.5531897]
[1729433962123,0.00012959,68749.0,68748.0,0.51019074]
[1729433962325,0.00012959,68749.0,68748.0,0.57468409]
[1729433962563,0.00012959,68749.0,68748.0,0.55318708]
[1729433963019,0.00012959,68749.0,68748.0,0.51019074]
[1729433963912,0.00012959,68749.0,68748.0,0.55318427]
[1729433965245,0.00012959,68749.0,68748.0,0.54818427]
[1729433965462,0.00012959,68749.0,68748.0,0.50019074]
[1729433966092,0.00012959,68749.0,68748.0,0.54317989]
[1729433966351,0.00012959,68749.0,68748.0,0.54317801]
[1729433966550,0.00012959,68749.0,68748.0,0.54317619]
[1729433966966,0.00012959,68749.0,68748.0,0.54317711]
[1729433967855,0.00012959,68749.0,68748.0,0.50019074]
[1729433968463,0.00012959,68749.0,68748.0,0.54317501]
[1729433968880,0.00012959,68749.0,68748.0,0.50019074]
[1729433969310,0.00012959,68749.0,68748.0,0.49519074]
[1729433969738,0.00012959,68749.0,68748.0,0.15103159]
[1729433971215,0.00012959,68749.0,68748.0,0.14603159]
[1729433971450,0.00012959,68749.0,68748.0,0.15103159]
[1729433981839,0.00012959,68749.0,68748.0,0.24293159]
[1729433982747,0.00012959,68749.0,68748.0,0.24556708]
[1729433982976,0.00012959,68749.0,68748.0,0.39952623]
[1729433983191,0.00012959,68749.0,68748.0,0.39689074]
[1729433987307,0.00012959,68749.0,68748.0,0.24293159]
[1729433987547,0.00012959,68749.0,68748.0,0.15103159]
[1729433987759,0.00012959,68749.0,68748.0,0.00557359]
[1729433987997,0.00012959,68749.0,68748.0,0.15103159]
[1729433988224,0.00012959,68749.0,68748.0,0.00557359]
[1729433988647,0.00012959,68749.0,68748.0,0.00057359]
[1729433988866,0.2221479,68749.0,68748.0,0.00057359]
[1729433990475,0.2451479,68749.0,68748.0,0.00057359]
[1729433990728,0.56486811,68749.0,68748.0,0.00057359]
[1729433990957,0.52050705,68749.0,68748.0,0.00057359]
[1729433991215,0.51050705,68749.0,68748.0,0.00057359]
[1729433991662,0.47720705,68749.0,68748.0,0.00057359]
[1729433991889,0.3282479,68749.0,68748.0,0.00057359]
[1729433994394,0.1827919,68749.0,68748.0,0.00057359]
[1729433994616,0.1777919,68749.0,68748.0,0.14603159]
[1729433994829,0.0766919,68749.0,68748.0,0.00057359]
[1729433995049,0.0766919,68749.0,68748.0,0.14603159]
[1729434000504,0.0766919,68749.0,68748.0,0.00057359]
[1729434000712,0.0766919,68749.0,68748.0,0.14603159]
[1729434000949,0.0766919,68749.0,68748.0,0.00057359]
[1729434001394,0.0996919,68749.0,68748.0,0.00057359]
[1729434001644,0.2451479,68749.0,68748.0,0.00057359]
[1729434002329,0.0996919,68749.0,68748.0,0.00057359]
[1729434007449,0.2451479,68749.0,68748.0,0.00057359]
[1729434008101,0.30410581,68749.0,68748.0,0.00057359]
[1729434008321,0.2451479,68749.0,68748.0,0.00057359]
[1729434011928,0.47570705,68749.0,68748.0,0.00057359]
[1729434012127,0.49070705,68749.0,68748.0,0.00057359]
[1729434012827,0.49270705,68749.0,68748.0,0.00057359]
[1729434013257,0.5370349,68749.0,68748.0,0.00057359]
[1729434013508,0.5350349,68749.0,68748.0,0.00057359]
[1729434014635,0.55650905,68749.0,68748.0,0.00057359]
[1729434015071,0.5350349,68749.0,68748.0,0.00057359]
[1729434015281,0.023,68744.0,68737.0,0.36394522]
[1729434015499,0.17195915,68744.0,68737.0,0.21846622]
[1729434015730,0.023,68744.0,68739.0,0.145477]
[1729434015940,0.168467,68744.0,68736.0,0.43645]
[1729434016193,0.168467,68744.0,68736.0,0.290968]
[1729434016628,0.14547,68743.0,68735.0,0.150485]
[1729434016842,0.023,68742.0,68736.0,0.145482]
[1729434017288,0.023,68742.0,68735.0,0.150484]
[1729434017520,0.023,68742.0,68736.0,0.145483]
[1729434018420,0.023,68742.0,68735.0,0.005]
[1729434018421,0.145471,68742.0,68735.0,0.005]
[1729434018656,0.145471,68742.0,68732.0,0.300984]
[1729434018657,0.023,68739.0,68732.0,0.015]
[1729434018878,0.21846622,68740.0,68734.0,0.005]
[1729434018879,0.023,68737.0,68734.0,0.005]
[1729434019324,0.023,68739.0,68734.0,0.005]
[1729434019551,0.023,68738.0,68734.0,0.005]
[1729434019793,0.023,68741.0,68734.0,0.005]
[1729434020041,0.023,68741.0,68732.0,0.015]
[1729434020279,0.023,68741.0,68734.0,0.005]
[1729434020489,0.023,68742.0,68734.0,0.150487]
[1729434020765,0.023,68740.0,68734.0,0.152517]
[1729434021193,0.168477,68740.0,68734.0,0.00703]
[1729434021402,0.168473,68742.0,68734.0,0.152518]
[1729434021613,0.023,68740.0,68734.0,0.152518]
[1729434021838,0.023,68740.0,68734.0,0.147518]
[1729434022063,0.023,68740.0,68734.0,0.152518]
[1729434022793,0.023,68740.0,68734.0,0.00703]
[1729434023036,0.023,68738.0,68734.0,0.00703]
[1729434023272,0.023,68738.0,68734.0,0.00203]
[1729434023482,0.023,68739.0,68734.0,0.00703]
[1729434023705,0.023,68739.0,68734.0,0.00203]
[1729434023706,0.168486,68735.0,68734.0,0.00203]
[1729434023930,0.24491517,68735.0,68734.0,0.00203]
[1729434025090,0.39387432,68735.0,68734.0,0.00203]
[1729434026011,0.15049,68733.0,68732.0,0.01]
[1729434026230,0.39629604,68733.0,68732.0,0.01]
[1729434026680,0.47929604,68733.0,68732.0,0.01]
[1729434027140,0.61766413,68733.0,68732.0,0.01]
[1729434027355,0.47929604,68733.0,68732.0,0.01]
[1729434028961,0.56853412,68733.0,68732.0,0.011656]
[1729434029648,0.52459604,68733.0,68732.0,0.011656]
[1729434030968,0.52459604,68733.0,68732.0,0.015606]
[1729434031185,0.67355519,68733.0,68732.0,0.015606]
[1729434031867,0.77355519,68733.0,68732.0,0.015606]
[1729434033271,0.77355519,68733.0,68729.0,0.00204]
[1729434033272,0.017,68730.0,68729.0,0.00204]
[1729434033499,0.49383233,68730.0,68729.0,0.00204]
[1729434033968,0.49601592,68730.0,68729.0,0.00204]
[1729434034225,0.68130779,68730.0,68729.0,0.00204]
[1729434034458,0.49601592,68730.0,68729.0,0.00204]
[1729434037888,0.47101592,68730.0,68729.0,0.00204]
[1729434038411,0.47301592,68730.0,68729.0,0.00204]
[1729434038875,0.47301592,68730.0,68716.0,0.21846622]
[1729434038876,0.14552,68719.0,68716.0,0.07650622]
[1729434039120,0.17195915,68718.0,68716.0,0.07650622]
[1729434039325,0.17195915,68718.0,68710.0,0.145539]
[1729434039537,0.145527,68716.0,68707.0,0.145545]
[1729434039763,0.17195915,68718.0,68708.0,0.145542]
[1729434039764,0.145525,68717.0,68708.0,0.145542]
[1729434040013,0.145525,68717.0,68706.0,0.383592]
[1729434040014,0.023,68716.0,68706.0,0.383592]
[1729434040212,0.023,68716.0,68709.0,0.145541]
[1729434040467,0.023,68714.0,68709.0,0.145541]
[1729434040707,0.023,68714.0,68709.0,0.14554]
[1729434041399,0.023,68714.0,68706.0,0.243046]
[1729434041652,0.023,68714.0,68706.0,0.0925]
[1729434041875,0.023,68714.0,68708.0,0.145543]
[1729434042102,0.023,68714.0,68706.0,0.238046]
[1729434042346,0.023,68715.0,68707.0,0.296091]
[1729434042574,0.24146622,68716.0,68707.0,0.296091]
[1729434042820,0.12146622,68716.0,68709.0,0.14554]
[1729434043004,0.14895915,68717.0,68709.0,0.14554]
[1729434043493,0.14895915,68717.0,68707.0,0.441634]
[1729434043729,0.14895915,68717.0,68708.0,0.145542]
[1729434043730,0.29448315,68717.0,68708.0,0.145542]
[1729434044184,0.29448315,68717.0,68707.0,0.296091]
[1729434044185,0.29448315,68717.0,68709.0,0.145541]
[1729434044418,0.00218338,68714.0,68709.0,0.145541]
[1729434044874,0.023,68713.0,68707.0,0.005]
[1729434045107,0.023,68713.0,68708.0,0.145541]
[1729434045337,0.023,68713.0,68709.0,0.14554]
[1729434046634,0.00218338,68714.0,68709.0,0.291082]
[1729434046848,0.00218338,68714.0,68708.0,0.1736]
[1729434047055,0.21846622,68713.0,68708.0,0.1686]
[1729434047243,0.21846622,68713.0,68708.0,0.1736]
[1729434047486,0.00218338,68714.0,68708.0,0.1686]
[1729434048020,0.023,68713.0,68708.0,0.0928]
[1729434048902,0.38699822,68713.0,68708.0,0.0928]
[1729434049134,0.168532,68713.0,68708.0,0.0928]
[1729434049579,0.023,68713.0,68708.0,0.0928]
[1729434050027,0.168534,68713.0,68708.0,0.0928]
[1729434050270,0.023,68711.0,68708.0,0.0928]
[1729434050773,0.023,68714.0,68708.0,0.0928]
[1729434051012,0.023,68710.0,68708.0,0.0928]
[1729434053113,0.023,68709.0,68708.0,0.0928]
[1729434053345,0.24577451,68709.0,68708.0,0.0928]
[1729434053595,0.10023351,68709.0,68708.0,0.094456]
[1729434060164,0.10023351,68709.0,68708.0,0.239999]
[1729434062100,0.10023351,68709.0,68708.0,0.25079517]
[1729434062534,0.07723351,68709.0,68708.0,0.32709517]
[1729434063436,0.023,68717.0,68711.0,0.145535]
[1729434063668,0.17195915,68718.0,68711.0,0.145535]
[1729434064114,0.023,68713.0,68708.0,0.094456]
[1729434064359,0.00218361,68710.0,68709.0,0.01079619]
[1729434064569,0.00218361,68710.0,68708.0,0.094456]
[1729434065483,0.005,68721.0,68711.0,0.0991]
[1729434065698,0.21846622,68719.0,68718.0,0.145521]
[1729434065918,0.29281688,68719.0,68718.0,0.145521]
[1729434066143,0.07435066,68719.0,68718.0,0.320921]
[1729434066576,0.00218359,68730.0,68718.0,0.320921]
[1729434066577,0.21846622,68728.0,68726.0,0.145504]
[1729434066815,0.21846622,68728.0,68727.0,0.0991]
[1729434067016,0.29281688,68728.0,68727.0,0.0991]
[1729434067252,0.07435066,68728.0,68727.0,0.0791]
[1729434068118,0.07315911,68728.0,68727.0,0.0791]
[1729434068323,0.07315911,68729.0,68727.0,0.0791]
[1729434068773,0.07315911,68729.0,68717.0,0.291046]
[1729434068774,0.39042537,68728.0,68714.0,0.005]
[1729434069021,0.168526,68716.0,68715.0,0.21846622]
[1729434069249,0.09624773,68716.0,68712.0,0.0763]
[1729434069494,0.168526,68716.0,68712.0,0.0763]
[1729434069749,0.314027,68722.0,68712.0,0.0813]
[1729434069964,0.023,68718.0,68712.0,0.0763]
[1729434070188,0.023,68716.0,68712.0,0.0763]
[1729434070413,0.023,68716.0,68713.0,0.0991]
[1729434071323,0.173541,68709.0,68708.0,0.001656]
[1729434071543,0.24122499,68709.0,68708.0,0.001656]
[1729434071971,0.09568399,68709.0,68708.0,0.001656]
[1729434072447,0.07268399,68709.0,68708.0,0.100756]
[1729434073107,0.07421326,68709.0,68708.0,0.100756]
[1729434073325,0.07421326,68709.0,68708.0,0.246298]
[1729434073537,0.00218307,68715.0,68711.0,0.005]
[1729434073809,0.00218307,68715.0,68714.0,0.0991]
[1729434074030,0.00218307,68715.0,68714.0,0.1041]
[1729434074285,0.00218307,68715.0,68714.0,0.0991]
[1729434074286,0.07639633,68715.0,68714.0,0.0991]
[1729434074509,0.07639633,68715.0,68714.0,0.1041]
[1729434074756,0.07421326,68717.0,68714.0,0.1041]
[1729434074996,0.145514,68722.0,68714.0,0.1041]
[1729434075212,0.50947222,68727.0,68714.0,0.1041]
[1729434075213,0.023,68725.0,68714.0,0.1041]
[1729434075424,0.168508,68725.0,68714.0,0.1041]
[1729434075881,0.023,68725.0,68714.0,0.1041]
[1729434076092,0.023,68725.0,68714.0,0.249629]
[1729434076527,0.023,68725.0,68714.0,0.244629]
[1729434076769,0.145505,68726.0,68715.0,0.145528]
[1729434076979,0.023,68725.0,68714.0,0.1041]
[1729434077415,0.023,68724.0,68714.0,0.1041]
[1729434077633,0.16851,68724.0,68714.0,0.1041]
[1729434077850,0.16851,68724.0,68714.0,0.24963]
[1729434078703,0.000828,68716.0,68714.0,0.24963]
[1729434078959,0.000828,68716.0,68714.0,0.1041]
[1729434082173,0.000828,68716.0,68714.0,0.0991]
[1729434082376,0.000828,68716.0,68714.0,0.1041]
[1729434083683,0.000828,68716.0,68714.0,0.0991]
[1729434083895,0.000828,68716.0,68714.0,0.1041]
[1729434084733,0.000828,68716.0,68714.0,0.0991]
[1729434085570,0.146355,68716.0,68714.0,0.0991]
[1729434086020,0.023,68713.0,68708.0,0.091656]
[1729434086238,0.168538,68711.0,68708.0,0.091656]
[1729434086523,0.023,68709.0,68708.0,0.091656]
[1729434086719,0.24565733,68709.0,68708.0,0.091656]
[1729434086932,0.10011633,68709.0,68708.0,0.091656]
[1729434087165,0.24565733,68709.0,68708.0,0.001656]
[1729434087635,0.10011633,68709.0,68708.0,0.001656]
[1729434088493,0.24565733,68709.0,68708.0,0.001656]
[1729434090701,0.47961648,68709.0,68708.0,0.001656]
[1729434098006,0.39461648,68709.0,68708.0,0.001656]
[1729434101151,0.10011633,68709.0,68708.0,0.001656]
[1729434101364,0.24565733,68709.0,68708.0,0.001656]
[1729434102055,0.39461648,68709.0,68708.0,0.001656]
[1729434105822,0.10011633,68709.0,68708.0,0.001656]
[1729434106889,0.24565733,68709.0,68708.0,0.001656]
[1729434112628,0.39961648,68709.0,68708.0,0.001656]
[1729434113284,0.47672885,68709.0,68708.0,0.001656]
[1729434113724,0.39961648,68709.0,68708.0,0.001656]
[1729434114602,0.50961648,68709.0,68708.0,0.001656]
[1729434119279,0.22265733,68709.0,68708.0,0.001656]
[1729434119726,0.07711633,68709.0,68708.0,0.001656]